[Event "Ebbe Cup 48"]
[Site "Goteborgs Schackcentrum, Vegatan 20, Gothenburg, Sweden"]
[Date "2025.02.16"]
[Round "4.5"]
[White "Bergdahl, Daniel"]
[Black "Munuswamy, Shivakumar"]
[Result "1-0"]
[TimeControl "90 minutes + 30 seconds per move from move one"]
[WhiteFideId "1780921"]
[BlackFideId "1788914"]
[WhiteElo "1818"]
[BlackElo "1586"]

1. e4 {[%clk 01:30:58]} {[%emt 00:00:02]} d6 {[%clk 01:30:24]} {[%emt
00:00:36]} 2. d4 {[%clk 01:31:19]} {[%emt 00:00:09]} Nf6 {[%clk 01:30:42]}
{[%emt 00:00:11]} 3. Bc4 {[%clk 01:31:41]} {[%emt 00:00:08]} c6 {[%clk
01:29:04]} {[%emt 00:02:10]} 4. Nc3 {[%clk 01:31:42]} {[%emt 00:00:28]} Nbd7
{[%clk 01:28:21]} {[%emt 00:01:13]} 5. Nf3 {[%clk 01:31:47]} {[%emt 00:00:25]}
e5 {[%clk 01:28:05]} {[%emt 00:00:46]} 6. dxe5 {[%clk 01:31:41]} {[%emt
00:00:36]} dxe5 {[%clk 01:27:23]} {[%emt 00:01:11]} 7. Qe2 {[%clk 01:32:02]}
{[%emt 00:00:08]} Be7 {[%clk 01:26:17]} {[%emt 00:01:37]} 8. Bg5 {[%clk
01:32:14]} {[%emt 00:00:17]} O-O {[%clk 01:25:49]} {[%emt 00:00:59]} 9. O-O-O
{[%clk 01:32:25]} {[%emt 00:00:19]} b5 {[%clk 01:25:36]} {[%emt 00:00:44]} 10.
Bb3 {[%clk 01:30:51]} {[%emt 00:02:04]} Qc7 {[%clk 01:24:50]} {[%emt 00:01:15]}
11. Nh4 {[%clk 01:30:58]} {[%emt 00:00:22]} Nc5 {[%clk 01:24:02]} {[%emt
00:01:20]} 12. Nf5 {[%clk 01:30:54]} {[%emt 00:00:34]} Nxb3+ {[%clk 01:22:42]}
{[%emt 00:01:49]} 13. axb3 {[%clk 01:31:09]} {[%emt 00:00:16]} Bxf5 {[%clk
01:21:53]} {[%emt 00:01:19]} 14. exf5 {[%clk 01:31:23]} {[%emt 00:00:16]} a5
{[%clk 01:20:31]} {[%emt 00:01:52]} 15. Rhe1 {[%clk 01:31:32]} {[%emt
00:00:20]} h6 {[%clk 01:19:25]} {[%emt 00:01:37]} 16. Bxf6 {[%clk 01:30:06]}
{[%emt 00:01:56]} Bxf6 {[%clk 01:14:15]} {[%emt 00:05:40]} 17. Ne4 {[%clk
01:30:29]} {[%emt 00:00:06]} Be7 {[%clk 01:13:07]} {[%emt 00:01:38]} 18. Qg4
{[%clk 01:29:38]} {[%emt 00:01:20]} a4 {[%clk 01:08:11]} {[%emt 00:05:27]} 19.
f6 {[%clk 01:29:50]} {[%emt 00:00:18]} g6 {[%clk 01:01:40]} {[%emt 00:07:01]}
20. Rd7 {[%clk 01:30:10]} {[%emt 00:00:11]} Qa5 {[%clk 00:58:30]} {[%emt
00:03:40]} 21. fxe7 {[%clk 01:29:36]} {[%emt 00:01:03]} Qxe1+ {[%clk 00:58:09]}
{[%emt 00:00:51]} 22. Rd1 {[%clk 01:29:56]} {[%emt 00:00:10]} Qxd1+ {[%clk
00:53:03]} {[%emt 00:05:36]} 23. Kxd1 {[%clk 01:30:11]} {[%emt 00:00:15]} Rfb8
{[%clk 00:52:47]} {[%emt 00:00:47]} 24. Nf6+ {[%clk 01:30:34]} {[%emt
00:00:06]} Kg7 {[%clk 00:52:27]} {[%emt 00:00:50]} 25. e8=Q {[%clk 01:30:56]}
{[%emt 00:00:09]} Rxe8 {[%clk 00:50:09]} 26. Nxe8+ {[%clk 01:31:17]} {[%emt
00:02:57]} Rxe8 {[%clk 00:49:33]} {[%emt 00:00:55]} 27. bxa4 {[%clk 01:31:45]}
{[%emt 00:00:12]} bxa4 {[%clk 00:48:53]} {[%emt 00:01:11]} 28. Qxa4 {[%clk
01:31:56]} {[%emt 00:00:18]} Re6 {[%clk 00:49:06]} {[%emt 00:00:18]} 29. Ke2
{[%clk 01:32:18]} {[%emt 00:00:08]} f5 {[%clk 00:49:05]} {[%emt 00:00:30]} 30.
Qc4 {[%clk 01:32:39]} {[%emt 00:00:08]} Kf6 {[%clk 00:49:08]} {[%emt 00:00:28]}
31. b4 {[%clk 01:33:01]} {[%emt 00:00:08]} g5 {[%clk 00:49:16]} {[%emt
00:00:22]} 32. Qc5 {[%clk 01:33:09]} {[%emt 00:00:22]} e4 {[%clk 00:44:59]}
{[%emt 00:04:48]} 33. c4 {[%clk 01:33:24]} {[%emt 00:00:14]} f4 {[%clk
00:45:00]} {[%emt 00:00:29]} 34. Qf8+ {[%clk 01:33:37]} {[%emt 00:00:17]} Kg6
{[%clk 00:45:21]} {[%emt 00:00:10]} 35. Qg8+ {[%clk 01:33:56]} {[%emt
00:00:10]} Kf6 {[%clk 00:45:43]} {[%emt 00:00:09]} 36. b5 {[%clk 01:34:19]}
{[%emt 00:00:06]} cxb5 {[%clk 00:45:56]} {[%emt 00:00:18]} 37. cxb5 {[%clk
01:34:42]} {[%emt 00:00:07]} Kf5 {[%clk 00:45:46]} {[%emt 00:00:40]} 38. Qf7+
{[%clk 01:34:35]} {[%emt 00:00:35]} Rf6 {[%clk 00:46:03]} {[%emt 00:00:15]} 39.
Qxf6+ {[%clk 01:34:52]} {[%emt 00:00:13]} 1-0

[Event "Ebbe Cup 48"]
[Site "Goteborgs Schackcentrum, Vegatan 20, Gothenburg, Sweden"]
[Date "2025.02.16"]
[Round "4.6"]
[White "Laudinger, Christian"]
[Black "Gustavsson, Ville"]
[Result "0-1"]
[TimeControl "90 minutes + 30 seconds per move from move one"]
[WhiteFideId "1774638"]
[BlackFideId "1792822"]
[WhiteElo "1626"]
[BlackElo "1884"]

1. f4 {[%clk 01:30:56]} {[%emt 00:00:03]} Nf6 {[%clk 01:29:45]} {[%emt
00:01:16]} 2. Nf3 {[%clk 01:31:15]} {[%emt 00:00:12]} g6 {[%clk 01:29:54]}
{[%emt 00:00:21]} 3. e3 {[%clk 01:31:30]} {[%emt 00:00:14]} Bg7 {[%clk
01:30:06]} {[%emt 00:00:17]} 4. c4 {[%clk 01:30:55]} {[%emt 00:01:06]} d6
{[%clk 01:29:39]} {[%emt 00:00:57]} 5. d4 {[%clk 01:27:58]} {[%emt 00:03:27]}
Bg4 {[%clk 01:28:31]} {[%emt 00:01:37]} 6. Nc3 {[%clk 01:27:02]} {[%emt
00:01:26]} Nbd7 {[%clk 01:27:29]} {[%emt 00:01:32]} 7. h3 {[%clk 01:25:27]}
{[%emt 00:02:01]} Bxf3 {[%clk 01:27:51]} {[%emt 00:00:11]} 8. Qxf3 {[%clk
01:25:51]} {[%emt 00:00:07]} c5 {[%clk 01:26:36]} {[%emt 00:01:45]} 9. d5
{[%clk 01:24:26]} {[%emt 00:01:55]} Rb8 {[%clk 01:19:35]} {[%emt 00:07:32]} 10.
Bd3 {[%clk 01:23:13]} {[%emt 00:01:42]} e6 {[%clk 01:18:49]} {[%emt 00:01:16]}
11. O-O {[%clk 01:21:32]} {[%emt 00:02:11]} O-O {[%clk 01:18:03]} {[%emt
00:01:16]} 12. e4 {[%clk 01:18:43]} {[%emt 00:03:19]} e5 {[%clk 01:14:47]}
{[%emt 00:03:47]} 13. f5 {[%clk 01:17:17]} {[%emt 00:01:55]} Nh5 {[%clk
01:09:05]} {[%emt 00:06:13]} 14. Kh2 {[%clk 01:11:07]} {[%emt 00:06:39]} h6
{[%clk 01:04:16]} {[%emt 00:05:19]} 15. g3 {[%clk 01:10:46]} {[%emt 00:00:50]}
a6 {[%clk 01:01:31]} {[%emt 00:03:16]} 16. a4 {[%clk 01:07:35]} {[%emt
00:03:40]} Kh7 {[%clk 00:58:47]} {[%emt 00:03:15]} 17. Be3 {[%clk 01:03:16]}
{[%emt 00:04:49]} Bf6 {[%clk 00:58:14]} {[%emt 00:01:03]} 18. h4 {[%clk
01:01:44]} {[%emt 00:02:02]} Ng7 {[%clk 00:57:54]} {[%emt 00:00:50]} 19. Kg2
{[%clk 00:58:01]} {[%emt 00:04:12]} h5 {[%clk 00:55:12]} {[%emt 00:03:13]} 20.
Rh1 {[%clk 00:56:42]} {[%emt 00:01:49]} Be7 {[%clk 00:54:17]} {[%emt 00:01:25]}
21. Be2 {[%clk 00:50:39]} {[%emt 00:06:32]} Nf6 {[%clk 00:53:11]} {[%emt
00:01:37]} 22. Qf2 {[%clk 00:49:15]} {[%emt 00:01:53]} Qd7 {[%clk 00:52:09]}
{[%emt 00:01:33]} 23. Raf1 {[%clk 00:48:43]} {[%emt 00:01:01]} Bd8 {[%clk
00:51:09]} {[%emt 00:01:31]} 24. Bd3 {[%clk 00:47:02]} {[%emt 00:02:11]} Ba5
{[%clk 00:49:11]} {[%emt 00:02:28]} 25. Bg5 {[%clk 00:40:20]} {[%emt 00:07:12]}
Ng4 {[%clk 00:47:48]} {[%emt 00:01:53]} 26. Qd2 {[%clk 00:38:27]} {[%emt
00:02:22]} Bxc3 {[%clk 00:40:50]} {[%emt 00:07:29]} 27. bxc3 {[%clk 00:38:44]}
{[%emt 00:00:13]} Qxa4 {[%clk 00:40:29]} {[%emt 00:00:51]} 28. Be2 {[%clk
00:38:13]} {[%emt 00:01:00]} b5 {[%clk 00:35:28]} {[%emt 00:05:32]} 29. Bxg4
{[%clk 00:38:18]} {[%emt 00:00:25]} hxg4 {[%clk 00:35:57]} {[%emt 00:00:01]} 30.
h5 {[%clk 00:34:28]} {[%emt 00:04:19]} Nxh5 {[%clk 00:36:25]} {[%emt 00:00:03]}
31. Qe2 {[%clk 00:28:19]} {[%emt 00:06:39]} Kg7 {[%clk 00:30:14]} {[%emt
00:06:40]} 32. f6+ {[%clk 00:26:20]} {[%emt 00:02:29]} Kh7 {[%clk 00:27:58]}
{[%emt 00:02:48]} 33. Qxg4 {[%clk 00:25:42]} {[%emt 00:01:05]} Rh8 {[%clk
00:27:31]} {[%emt 00:00:59]} 34. Rxh5+ {[%clk 00:06:55]} {[%emt 00:19:16]} gxh5
{[%clk 00:27:59]} {[%emt 00:00:02]} 35. Qxh5+ {[%clk 00:06:48]} {[%emt
00:00:37]} Kg8 {[%clk 00:28:27]} {[%emt 00:00:02]} 36. Bh6 {[%clk 00:03:17]}
{[%emt 00:04:01]} Qc2+ {[%clk 00:26:52]} {[%emt 00:02:05]} 37. Kg1 {[%clk
00:02:39]} {[%emt 00:01:08]} Qxe4 {[%clk 00:26:43]} {[%emt 00:00:39]} 38. Rf5
{[%clk 00:02:47]} {[%emt 00:00:22]} Qxf5 {[%clk 00:24:15]} {[%emt 00:02:58]} 39.
Qxf5 {[%clk 00:03:01]} {[%emt 00:00:17]} Rxh6 {[%clk 00:24:44]} 40. g4 {[%clk
00:01:49]} {[%emt 00:01:42]} bxc4 {[%clk 00:23:04]} {[%emt 00:02:09]} 41. g5
{[%clk 00:01:59]} {[%emt 00:00:21]} Rg6 {[%clk 00:23:23]} {[%emt 00:00:12]} 42.
Kg2 {[%clk 00:02:00]} {[%emt 00:00:28]} Rd8 {[%clk 00:22:07]} {[%emt 00:01:46]}
43. Kg3 {[%clk 00:02:20]} {[%emt 00:00:10]} a5 {[%clk 00:22:25]} {[%emt
00:00:12]} 44. Kg4 {[%clk 00:02:44]} {[%emt 00:00:06]} a4 {[%clk 00:22:18]}
{[%emt 00:00:38]} 45. Qb1 {[%clk 00:03:01]} {[%emt 00:00:12]} a3 {[%clk
00:21:57]} {[%emt 00:00:50]} 46. Qb7 {[%clk 00:02:39]} {[%emt 00:00:51]} Re8
{[%clk 00:21:42]} {[%emt 00:00:46]} 47. Qa7 {[%clk 00:02:31]} {[%emt 00:00:38]}
e4 {[%clk 00:21:18]} {[%emt 00:00:56]} 48. Qxa3 {[%clk 00:02:50]} {[%emt
00:00:10]} Re5 {[%clk 00:21:26]} {[%emt 00:00:22]} 49. Qa8+ {[%clk 00:02:07]}
{[%emt 00:01:13]} Kh7 {[%clk 00:21:49]} {[%emt 00:00:07]} 50. Qf8 {[%clk
00:01:50]} {[%emt 00:00:46]} Rexg5+ {[%clk 00:11:33]} {[%emt 00:10:46]} 51. Kh4
{[%clk 00:02:12]} {[%emt 00:00:08]} Rg4+ {[%clk 00:09:43]} {[%emt 00:02:20]} 52.
Kh5 {[%clk 00:02:32]} {[%emt 00:00:10]} R6g5# {[%clk 00:09:52]} {[%emt
00:00:21]} 0-1

[Event "Ebbe Cup 48"]
[Site "Goteborgs Schackcentrum, Vegatan 20, Gothenburg, Sweden"]
[Date "2025.02.16"]
[Round "4.7"]
[White "Evertsson, David"]
[Black "Sivarama, Saadhvik"]
[Result "1-0"]
[TimeControl "90 minutes + 30 seconds per move from move one"]
[WhiteFideId "1777424"]
[BlackFideId "1773720"]
[WhiteElo "1710"]
[BlackElo "1657"]

1. e4 {[%clk 01:30:55]} {[%emt 00:00:03]} c5 {[%clk 01:29:42]} {[%emt
00:01:21]} 2. Nf3 {[%clk 01:31:13]} {[%emt 00:00:11]} d6 {[%clk 01:29:29]}
{[%emt 00:00:44]} 3. d4 {[%clk 01:31:13]} {[%emt 00:00:28]} cxd4 {[%clk
01:29:43]} {[%emt 00:00:18]} 4. Nxd4 {[%clk 01:31:37]} {[%emt 00:00:06]} Nf6
{[%clk 01:29:12]} {[%emt 00:01:01]} 5. Nc3 {[%clk 01:31:58]} {[%emt 00:00:08]}
g6 {[%clk 01:28:13]} {[%emt 00:01:29]} 6. Be3 {[%clk 01:31:39]} {[%emt
00:00:49]} Bg7 {[%clk 01:25:00]} {[%emt 00:03:43]} 7. f3 {[%clk 01:31:00]}
{[%emt 00:01:08]} O-O {[%clk 01:22:39]} {[%emt 00:02:52]} 8. Qd2 {[%clk
01:30:36]} {[%emt 00:00:52]} Nc6 {[%clk 01:20:19]} {[%emt 00:02:52]} 9. O-O-O
{[%clk 01:29:13]} {[%emt 00:01:52]} d5 {[%clk 01:16:45]} {[%emt 00:04:06]} 10.
exd5 {[%clk 01:28:17]} {[%emt 00:01:24]} Nxd5 {[%clk 01:15:21]} {[%emt
00:01:55]} 11. Nxc6 {[%clk 01:28:22]} {[%emt 00:00:24]} bxc6 {[%clk 01:14:02]}
{[%emt 00:01:51]} 12. Bd4 {[%clk 01:28:04]} {[%emt 00:00:46]} Nxc3 {[%clk
01:09:28]} {[%emt 00:05:05]} 13. Qxc3 {[%clk 01:24:33]} {[%emt 00:04:02]} Bh6+
{[%clk 01:03:49]} {[%emt 00:06:08]} 14. Be3 {[%clk 01:19:56]} {[%emt 00:05:06]}
Bxe3+ {[%clk 01:02:45]} {[%emt 00:01:35]} 15. Qxe3 {[%clk 01:20:15]} {[%emt
00:00:11]} Qc7 {[%clk 01:01:00]} {[%emt 00:02:15]} 16. Bc4 {[%clk 00:49:27]}
{[%emt 00:31:18]} Bb7 {[%clk 00:53:57]} {[%emt 00:07:33]} 17. Qh6 {[%clk
00:31:03]} {[%emt 00:18:54]} Rfe8 {[%clk 00:48:45]} {[%emt 00:05:42]} 18. h4
{[%clk 00:28:34]} {[%emt 00:02:59]} Qe5 {[%clk 00:48:34]} {[%emt 00:00:41]} 19.
Rhe1 {[%clk 00:25:05]} {[%emt 00:03:58]} Qc5 {[%clk 00:38:54]} {[%emt
00:10:11]} 20. Bxf7+ {[%clk 00:19:43]} {[%emt 00:05:52]} Kxf7 {[%clk 00:33:14]}
{[%emt 00:06:10]} 21. Qxh7+ {[%clk 00:19:48]} {[%emt 00:00:24]} Kf6 {[%clk
00:32:24]} {[%emt 00:01:21]} 22. g4 {[%clk 00:18:45]} {[%emt 00:01:33]} Rf8
{[%clk 00:31:18]} {[%emt 00:01:36]} 23. Rxe7 {[%clk 00:12:46]} {[%emt
00:06:29]} Qxe7 {[%clk 00:30:36]} {[%emt 00:01:13]} 24. g5+ {[%clk 00:12:59]}
{[%emt 00:00:16]} Kf5 {[%clk 00:27:55]} {[%emt 00:03:11]} 25. Qxe7 {[%clk
00:12:58]} {[%emt 00:00:31]} Rae8 {[%clk 00:27:16]} {[%emt 00:01:10]} 26. Qxb7
{[%clk 00:12:18]} {[%emt 00:01:09]} 1-0

[Event "Ebbe Cup 48"]
[Site "Goteborgs Schackcentrum, Vegatan 20, Gothenburg, Sweden"]
[Date "2025.02.16"]
[Round "4.8"]
[White "Pettersson, Lennart"]
[Black "Sreedvan, Shrishti"]
[Result "0-1"]
[TimeControl "90 minutes + 30 seconds per move from move one"]
[WhiteFideId "1791419"]
[BlackFideId "1773739"]
[WhiteElo "1691"]
[BlackElo "1519"]

1. e4 {[%clk 01:30:52]} {[%emt 00:00:04]} c5 {[%clk 01:30:57]} {[%emt
00:00:07]} 2. Nc3 {[%clk 01:30:50]} {[%emt 00:00:31]} d6 {[%clk 01:31:05]}
{[%emt 00:00:23]} 3. Nf3 {[%clk 01:30:48]} {[%emt 00:00:31]} Nc6 {[%clk
01:31:22]} {[%emt 00:00:14]} 4. a3 {[%clk 01:30:58]} {[%emt 00:00:19]} Nf6
{[%clk 01:31:14]} {[%emt 00:00:39]} 5. h3 {[%clk 01:30:33]} {[%emt 00:00:53]}
e6 {[%clk 01:30:50]} {[%emt 00:00:56]} 6. Bc4 {[%clk 01:30:20]} {[%emt
00:00:42]} d5 {[%clk 01:28:28]} {[%emt 00:02:53]} 7. exd5 {[%clk 01:30:19]}
{[%emt 00:00:29]} exd5 {[%clk 01:28:50]} {[%emt 00:00:10]} 8. Ba2 {[%clk
01:30:15]} {[%emt 00:00:32]} Be6 {[%clk 01:28:27]} {[%emt 00:00:55]} 9. O-O
{[%clk 01:30:09]} {[%emt 00:00:35]} h6 {[%clk 01:28:08]} {[%emt 00:00:49]} 10.
d4 {[%clk 01:30:03]} {[%emt 00:00:36]} Bd6 {[%clk 01:25:46]} {[%emt 00:02:52]}
11. Re1 {[%clk 01:30:09]} {[%emt 00:00:25]} O-O {[%clk 01:25:17]} {[%emt
00:00:59]} 12. dxc5 {[%clk 01:29:24]} {[%emt 00:01:18]} Bxc5 {[%clk 01:25:14]}
{[%emt 00:00:29]} 13. b4 {[%clk 01:27:43]} {[%emt 00:02:11]} Bb6 {[%clk
01:24:42]} {[%emt 00:01:03]} 14. b5 {[%clk 01:24:25]} {[%emt 00:03:47]} Ne7
{[%clk 01:23:54]} {[%emt 00:01:16]} 15. Bb2 {[%clk 01:23:48]} {[%emt 00:01:10]}
Nh5 {[%clk 01:17:19]} {[%emt 00:07:05]} 16. a4 {[%clk 01:17:11]} {[%emt
00:07:07]} Ba5 {[%clk 01:11:27]} {[%emt 00:06:22]} 17. Nd4 {[%clk 01:15:08]}
{[%emt 00:02:30]} Nf4 {[%clk 01:04:45]} {[%emt 00:07:14]} 18. Nxe6 {[%clk
01:13:54]} {[%emt 00:01:44]} Nxe6 {[%clk 01:04:52]} {[%emt 00:00:24]} 19. Re5
{[%clk 01:12:28]} {[%emt 00:01:55]} d4 {[%clk 01:03:21]} {[%emt 00:02:01]} 20.
Nd5 {[%clk 01:10:19]} {[%emt 00:02:40]} Nxd5 {[%clk 00:58:15]} {[%emt
00:05:36]} 21. Bxd5 {[%clk 01:09:40]} {[%emt 00:01:07]} Qc7 {[%clk 00:52:57]}
{[%emt 00:05:49]} 22. Bxd4 {[%clk 01:08:56]} {[%emt 00:01:15]} Nxd4 {[%clk
00:53:06]} {[%emt 00:00:21]} 23. Qh5 {[%clk 00:55:40]} {[%emt 00:13:45]} Nxc2
{[%clk 00:49:42]} {[%emt 00:03:55]} 24. Rc1 {[%clk 00:48:06]} {[%emt 00:08:03]}
Bd2 {[%clk 00:48:10]} {[%emt 00:02:03]} 25. Rxc2 {[%emt 00:04:40]} Qxc2 {[%emt
00:02:34]} 26. Re7 {[%clk 00:40:53]} {[%emt 00:00:27]} g6 {[%clk 00:46:24]}
{[%emt 00:02:17]} 27. Qe2 {[%clk 00:34:50]} {[%emt 00:06:32]} Qc1+ {[%clk
00:44:38]} {[%emt 00:02:17]} 28. Kh2 {[%clk 00:34:35]} {[%emt 00:00:44]} Bg5
{[%clk 00:41:53]} {[%emt 00:03:13]} 29. Qd3 {[%clk 00:34:39]} {[%emt 00:00:27]}
Kg7 {[%clk 00:37:53]} {[%emt 00:04:31]} 30. Rxb7 {[%clk 00:31:59]} {[%emt
00:03:11]} Rae8 {[%clk 00:37:16]} {[%emt 00:01:07]} 31. Be4 {[%clk 00:31:54]}
{[%emt 00:00:34]} Qf4+ {[%clk 00:36:42]} {[%emt 00:01:03]} 32. Kg1 {[%clk
00:30:51]} {[%emt 00:01:34]} Rxe4 {[%clk 00:36:27]} {[%emt 00:00:46]} 33. Qc3+
{[%clk 00:29:24]} {[%emt 00:01:58]} Bf6 {[%clk 00:36:08]} {[%emt 00:00:48]} 0-1

[Event "Ebbe Cup 48"]
[Site "Goteborgs Schackcentrum, Vegatan 20, Gothenburg, Sweden"]
[Date "2025.02.16"]
[Round "4.9"]
[White "Hernebring, Marten"]
[Black "Hamsten, Martin"]
[Result "0-1"]
[TimeControl "90 minutes + 30 seconds per move from move one"]
[WhiteFideId "1776894"]
[BlackFideId "1780425"]
[WhiteElo "1663"]
[BlackElo "1669"]

1. e4 {[%clk 01:30:58]} {[%emt 00:00:02]} c6 {[%clk 01:30:56]} {[%emt
00:00:05]} 2. d4 {[%clk 01:31:23]} {[%emt 00:00:05]} d5 {[%clk 01:31:23]}
{[%emt 00:00:03]} 3. Nc3 {[%clk 01:31:47]} {[%emt 00:00:06]} dxe4 {[%clk
01:31:48]} {[%emt 00:00:05]} 4. Nxe4 {[%clk 01:32:05]} {[%emt 00:00:12]} Nf6
{[%clk 01:32:13]} {[%emt 00:00:05]} 5. Nxf6+ {[%clk 01:32:21]} {[%emt
00:00:14]} exf6 {[%clk 01:32:36]} {[%emt 00:00:07]} 6. c3 {[%clk 01:32:33]}
{[%emt 00:00:17]} Bd6 {[%clk 01:32:58]} {[%emt 00:00:08]} 7. Bd3 {[%clk
01:32:41]} {[%emt 00:00:22]} O-O {[%clk 01:33:21]} {[%emt 00:00:07]} 8. Qc2
{[%clk 01:33:03]} {[%emt 00:00:09]} Re8+ {[%clk 01:33:41]} {[%emt 00:00:11]} 9.
Ne2 {[%clk 01:33:22]} {[%emt 00:00:10]} h5 {[%clk 01:33:56]} {[%emt 00:00:14]}
10. h3 {[%clk 01:33:27]} {[%emt 00:00:26]} b5 {[%clk 01:32:04]} {[%emt
00:02:23]} 11. O-O {[%clk 01:33:14]} {[%emt 00:00:42]} Nd7 {[%clk 01:29:58]}
{[%emt 00:02:36]} 12. a4 {[%clk 01:31:00]} {[%emt 00:02:46]} b4 {[%clk
01:28:25]} {[%emt 00:02:01]} 13. cxb4 {[%clk 01:20:23]} {[%emt 00:11:08]} Bxb4
{[%clk 01:28:15]} {[%emt 00:00:40]} 14. Qxc6 {[%clk 01:20:45]} {[%emt
00:00:07]} Rb8 {[%clk 01:28:23]} {[%emt 00:00:22]} 15. Bf4 {[%clk 01:08:05]}
{[%emt 00:13:10]} Rb6 {[%clk 01:27:06]} {[%emt 00:01:47]} 16. Qc2 {[%clk
01:02:50]} {[%emt 00:05:45]} Qe7 {[%clk 01:25:57]} {[%emt 00:01:39]} 17. Nc3
{[%clk 01:02:49]} {[%emt 00:00:31]} Bb7 {[%clk 01:24:51]} {[%emt 00:01:36]} 18.
Rfe1 {[%clk 00:59:59]} {[%emt 00:03:20]} Qxe1+ {[%clk 01:23:06]} {[%emt
00:02:15]} 19. Rxe1 {[%clk 01:00:21]} {[%emt 00:00:08]} Rxe1+ {[%clk 01:23:24]}
{[%emt 00:00:12]} 20. Kh2 {[%clk 01:00:46]} {[%emt 00:00:05]} Nf8 {[%clk
01:20:49]} {[%emt 00:03:05]} 21. Be2 {[%clk 00:56:32]} {[%emt 00:04:44]} Bxc3
{[%clk 01:18:22]} {[%emt 00:02:57]} 22. bxc3 {[%clk 00:56:42]} {[%emt
00:00:21]} Rbb1 {[%clk 01:18:08]} {[%emt 00:00:43]} 23. Kg3 {[%clk 00:44:59]}
{[%emt 00:12:13]} h4+ {[%clk 01:16:39]} {[%emt 00:01:59]} 24. Kxh4 {[%emt
00:04:39]} g5+ {[%clk 01:14:10]} 25. Kg4 {[%clk 00:42:21]} {[%emt 00:01:57]}
gxf4 {[%clk 01:13:47]} {[%emt 00:00:54]} 26. Bf3 {[%clk 00:42:31]} {[%emt
00:00:21]} Bxf3+ {[%clk 01:13:32]} {[%emt 00:00:44]} 27. Kxf3 {[%clk 00:42:54]}
{[%emt 00:00:07]} Ng6 {[%clk 01:13:26]} {[%emt 00:00:36]} 28. Kg4 {[%clk
00:39:09]} {[%emt 00:04:15]} Rec1 {[%clk 01:07:58]} {[%emt 00:05:58]} 29. Qe4
{[%clk 00:37:17]} {[%emt 00:02:23]} Rb8 {[%clk 01:06:57]} {[%emt 00:01:30]} 30.
Qc6 {[%clk 00:35:29]} {[%emt 00:02:18]} Kg7 {[%clk 01:04:33]} {[%emt 00:02:54]}
31. Qc7 {[%clk 00:35:43]} {[%emt 00:00:16]} Rh8 {[%clk 01:04:37]} {[%emt
00:00:26]} 32. d5 {[%clk 00:34:58]} {[%emt 00:01:15]} Rh4+ {[%clk 01:03:48]}
{[%emt 00:01:18]} 33. Kf3 {[%clk 00:32:05]} {[%emt 00:03:23]} Re1 {[%clk
01:03:15]} {[%emt 00:01:03]} 34. g3 {[%clk 00:31:20]} {[%emt 00:01:15]} Ne5+
{[%clk 01:02:06]} {[%emt 00:01:40]} 35. Kg2 {[%clk 00:31:23]} {[%emt 00:00:27]}
f3+ {[%clk 01:01:36]} {[%emt 00:01:00]} 36. Kh2 {[%clk 00:31:46]} {[%emt
00:00:07]} Ng4# {[%clk 01:01:57]} {[%emt 00:00:09]} 0-1